lending/lending_fUSD_20260328
["ID","MTS","AMOUNT","RATE_DAILY","PERIOD"]
[419002207,1774735841232,-500.0,0.00015973,2]
[419002208,1774735841241,-500.0,0.00015973,2]
[419002209,1774735841251,-397.4813256,0.00015973,2]
[419002210,1774735841260,-500.0,0.00015973,2]
[419002211,1774735841270,-500.0,0.00015973,2]
[419002212,1774735841279,-500.0,0.00015973,2]
[419002213,1774735841288,-500.0,0.00015973,2]
[419002214,1774735841298,-500.0,0.00015973,2]
[419002215,1774735841307,-500.0,0.00015973,2]
[419002216,1774735841316,-500.0,0.00015973,2]
[419002217,1774735841325,-500.0,0.00015973,2]
[419002218,1774735841334,-500.0,0.00015973,2]
[419002219,1774735841343,-500.0,0.00015973,2]
[419002220,1774735841353,-500.0,0.00015973,2]
[419002221,1774735841362,-353.52089299,0.0001599,2]
[419002222,1774735841372,-353.52089299,0.0001599,2]
[419002223,1774735841382,-2468.0,0.00015991,2]
[419002224,1774735841392,-6011.0,0.00015991,2]
[419002225,1774735841402,-656.0,0.00015996,2]
[419002226,1774735841411,-151.0,0.00015997,2]
[419002227,1774735841420,-151.0,0.00015997,2]
[419002228,1774735841430,-671.40174411,0.00015999,2]
[419002229,1774735841439,-291.70995289,0.00015999,2]
[419002230,1774735841449,-500.0,0.00015999,2]
[419002231,1774735841458,-500.0,0.00015999,2]
[419002232,1774735841467,-206.95112848,0.00015999,2]
[419002233,1774735841477,-1790393.78012323,0.00016,2]
[419002234,1774735841486,-1000.0,0.00016,2]
[419002235,1774735841496,-1000.0,0.00016,2]
[419002236,1774735841505,-1000.0,0.00016,2]
[419002237,1774735841515,-1000.0,0.00016,2]
[419002238,1774735841524,-1000.0,0.00016,2]
[419002239,1774735841534,-1000.0,0.00016,2]
[419002240,1774735841544,-1000.0,0.00016,2]
[419002241,1774735841553,-1000.0,0.00016,2]
[419002242,1774735841563,-1000.0,0.00016,2]
[419002243,1774735841574,-766.149,0.00016,2]
[419002244,1774735841584,-112510.4015928,0.00016,2]
[419002245,1774735841593,-2000.0,0.00016,2]
[419002246,1774735841603,-200.0,0.00016,2]
[419002247,1774735841612,-1523.0,0.00016,2]
[419002248,1774735841621,-151.0,0.00016,2]
[419002249,1774735841631,-1523.0,0.00016,2]
[419002250,1774735841640,-151.0,0.00016,2]
[419002251,1774735841649,-1523.0,0.00016,2]
[419002252,1774735841659,-160.28272017,0.00016,2]
[419002253,1774735841668,-151.0,0.00016,2]
[419002254,1774735841677,-1523.0,0.00016,2]
[419002255,1774735841687,-151.0,0.00016,2]
[419002256,1774735841696,-1523.0,0.00016,2]
[419002257,1774735841705,-151.0,0.00016,2]
[419002258,1774735841714,-1523.0,0.00016,2]
[419002259,1774735841724,-151.0,0.00016,2]
[419002260,1774735841734,-1523.0,0.00016,2]
[419002261,1774735841743,-151.0,0.00016,2]
[419002262,1774735841752,-1523.0,0.00016,2]
[419002263,1774735841761,-151.0,0.00016,2]
[419002264,1774735841771,-1523.0,0.00016,2]
[419002265,1774735841782,-1523.0,0.00016,2]
[419002266,1774735841792,-1523.0,0.00016,2]
[419002267,1774735841804,-1523.0,0.00016,2]
[419002268,1774735841814,-1523.0,0.00016,2]
[419002269,1774735841824,-1523.0,0.00016,2]
[419002270,1774735841834,-1523.0,0.00016,2]
[419002271,1774735841843,-1611.57442331,0.00016,2]
[419002272,1774735841853,-1000.0,0.00016,2]
[419002273,1774735841863,-1000.0,0.00016,2]
[419002274,1774735841872,-1000.0,0.00016,2]
[419002275,1774735841884,-1000.0,0.00016,2]
[419002276,1774735841893,-1131.61932121,0.00016,2]
[419002277,1774735841904,-3614.3959724,0.00016,2]
[419002278,1774735841919,-9643.4210446,0.00016,2]
[419002279,1774735841929,-200.0,0.00016,2]
[419002280,1774735841940,-342.79836072,0.00016,2]
[419002281,1774735841953,-151.0,0.00016,2]
[419002282,1774735841965,-4223.6837574,0.00016,2]
[419002283,1774735841977,-1000.0,0.00016,2]
[419002284,1774735841988,-1959.26279,0.00016,2]
[419002285,1774735841998,-4539420.92553478,0.00016,2]
[419002286,1774735842142,-500.0,0.00013698,2]
[419002287,1774735842152,-278.86938504,0.00016,2]
[419002288,1774735842164,-606.80868331,0.00016,2]
[419002289,1774735842174,-1640.77491159,0.00016,2]
[419002290,1774735842186,-3188.44738282,0.00016,2]
[419002291,1774735842197,-3960.57848241,0.00016,2]
[419002292,1774735842212,-28684.69679848,0.00016,2]
[419002293,1774735842224,-68000.00000007,0.00016,2]
[419002294,1774735842240,-341.50517263,0.00013698,2]
[419002295,1774735842314,-158.49482737,0.00013698,2]
[419002296,1774735842324,-363.26498916,0.00013698,2]
[419002297,1774735842335,-136.73501084,0.00013698,2]
[419002298,1774735842344,-448.01943974,0.00013698,2]
[419002299,1774735842354,-5672269.47799205,0.00016,2]
[419002300,1774735842373,-1313931.80653104,0.00016,2]
[419002301,1774735842383,-150.0,0.00016,2]
[419002302,1774735842393,-151.0,0.00016,2]
[419002303,1774735842403,-368.552991,0.00016,2]
[419002304,1774735842413,-368.552991,0.00016,2]
[419002305,1774735842422,-368.552991,0.00016,2]
[419002306,1774735842431,-368.552991,0.00016,2]
[419002307,1774735842440,-932123.92150059,0.00016,2]
[419002308,1774735842459,-562.33383639,0.00016,2]
[419002321,1774735843547,-253.0,0.00016,2]
[419002322,1774735843948,-761.0,0.00016,2]
[419002323,1774735843959,-16620.27,0.00016,2]
[419002324,1774735844009,-3400.0,0.00016,2]
[419002382,1774735845996,-270.39079621,0.00013299,2]
[419002383,1774735846329,-229.60920379,0.00013299,2]
[419002384,1774735846339,-500.0,0.00013299,2]
[419002385,1774735846349,-500.0,0.00013299,2]
[419002386,1774735846359,-500.0,0.00013299,2]
[419002387,1774735846369,-500.0,0.00013299,2]
[419002388,1774735846379,-500.0,0.00013299,2]
[419002389,1774735846389,-500.0,0.00013299,2]
[419002390,1774735846399,-500.0,0.00013299,2]
[419002391,1774735846409,-500.0,0.00013299,2]
[419002392,1774735846418,-500.0,0.00013299,2]
[419002393,1774735846428,-500.0,0.00013299,2]
[419002394,1774735846437,-340.84533589,0.00013299,2]
[419002395,1774735846450,-159.15466411,0.00013299,2]
[419002396,1774735846460,-500.0,0.00013299,2]
[419002397,1774735846470,-500.0,0.00013299,2]
[419002398,1774735846480,-125.17317949,0.00013299,2]
[419002399,1774735846523,-374.82682051,0.00013299,2]
[419002400,1774735846533,-500.0,0.00013299,2]
[419002401,1774735846543,-355.94412464,0.00013299,2]
[419002402,1774735846553,-500.0,0.00013299,2]
[419002403,1774735846563,-500.0,0.00013299,2]
[419002404,1774735846573,-500.0,0.00013299,2]
[419002405,1774735846583,-500.0,0.00013299,2]
[419002406,1774735846592,-500.0,0.00013299,2]
[419002407,1774735846602,-97.25376846,0.00013299,2]
[419002408,1774735846619,-402.74623154,0.00013299,2]
[419002409,1774735846629,-500.0,0.00013299,2]
[419002410,1774735846639,-500.0,0.00013299,2]
[419002411,1774735846649,-196.13802215,0.00013699,2]
[419002412,1774735846658,-1969.13231417,0.00016,2]
[419002442,1774736573318,167.23,9.534e-05,2]
[419002449,1774736905125,586.26,9.214e-05,2]
[419002450,1774736906029,609.29,0.00010083,2]
[419002451,1774736906844,365.21,0.0001093,2]
[419002452,1774736913830,158.82,5.803e-05,2]
[419002453,1774736996407,8280.43,0.00011507,2]
[419002454,1774736996431,1478.99,0.00011507,2]
[419002458,1774737005824,150.0,0.00011459,2]
[419002475,1774737032173,-182.6136217,0.00011632,2]
[419002476,1774737032182,-254.57535302,0.00011632,2]
[419002477,1774737032193,-32.42464698,0.00011632,2]
[419002478,1774737032203,-260.55235304,0.00011674,2]
[419002479,1774737032214,-294.40797712,0.00011674,2]
[419002480,1774737032257,-2182.37961044,0.00011674,2]
[419002481,1774737032268,-871.83149132,0.00011674,2]
[419002482,1774737032329,-956.47856808,0.00011674,2]
[419002483,1774737032338,-195.0,0.00011732,2]
[419002484,1774737032348,-1600.0,0.00011791,2]
[419002485,1774737032356,-158.9403,0.00011839,2]
[419002486,1774737032366,-1200.0,0.0001185,2]
[419002487,1774737032376,-195.0,0.00011851,2]
[419002488,1774737032384,-195.0,0.00011851,2]
[419002489,1774737032393,-195.0,0.00011851,2]
[419002490,1774737032403,-500.0,0.00011939,2]
[419002491,1774737032412,-250.0,0.00012014,2]
[419002492,1774737032421,-300.0,0.00012054,2]
[419002493,1774737032430,-1720.8,0.00012055,2]
[419002494,1774737032439,-150.0,0.000121,2]
[419002495,1774737032448,-250.0,0.00012119,2]
[419002496,1774737032457,-14243.83,0.0001219,2]
[419002498,1774737032466,-172.0,0.00012205,2]
[419002500,1774737032475,-166.66,0.00012251,2]
[419002502,1774737032484,-312.0,0.00012334,2]
[419002503,1774737032493,-182.61362169,0.00012399,2]
[419002505,1774737032502,-446.0,0.00012419,2]
[419002508,1774737032511,-217.36918782,0.00012456,2]
[419002510,1774737032520,-150.0,0.00012477,2]
[419002512,1774737032530,-200.0,0.00012478,2]
[419002514,1774737032539,-1792.87,0.00012478,2]
[419002516,1774737032548,-150.99,0.00012478,2]
[419002518,1774737032558,-999.99,0.00012478,2]
[419002519,1774737032568,-9999.99,0.00012478,2]
[419002521,1774737032577,-500.0,0.00012499,2]
[419002524,1774737032597,-500.0,0.00012499,2]
[419002525,1774737032608,-500.0,0.00012499,2]
[419002526,1774737032619,-500.0,0.00012499,2]
[419002527,1774737032628,-500.0,0.00012499,2]
[419002528,1774737032638,-500.0,0.00012499,2]
[419002529,1774737032648,-500.0,0.00012499,2]
[419002530,1774737032658,-500.0,0.00012499,2]
[419002531,1774737032667,-150.0,0.00012499,2]
[419002532,1774737032677,-500.0,0.00012499,2]
[419002533,1774737032686,-151.57649654,0.00012499,2]
[419002534,1774737032695,-500.0,0.00012499,2]
[419002535,1774737032704,-500.0,0.00012499,2]
[419002536,1774737032714,-500.0,0.00012499,2]
[419002537,1774737032725,-500.0,0.00012499,2]
[419002538,1774737032734,-500.0,0.00012499,2]
[419002539,1774737032744,-500.0,0.00012499,2]
[419002540,1774737032754,-500.0,0.00012499,2]
[419002541,1774737032764,-500.0,0.00012499,2]
[419002542,1774737032774,-500.0,0.00012499,2]
[419002543,1774737032784,-500.0,0.00012499,2]
[419002544,1774737032794,-500.0,0.00012499,2]
[419002545,1774737032804,-500.0,0.00012499,2]
[419002546,1774737032815,-500.0,0.00012499,2]
[419002547,1774737032826,-317.44592423,0.00012499,2]
[419002548,1774737032836,-500.0,0.00012499,2]
[419002549,1774737032847,-150.0,0.00012499,2]
[419002550,1774737032856,-360.33830088,0.00012499,2]
[419002551,1774737032866,-500.0,0.00012499,2]
[419002552,1774737032876,-500.0,0.00012499,2]
[419002553,1774737032886,-500.0,0.00012499,2]
[419002554,1774737032898,-500.0,0.00012499,2]
[419002555,1774737032908,-500.0,0.00012499,2]
[419002556,1774737032918,-500.0,0.00012499,2]
[419002557,1774737032929,-500.0,0.00012499,2]
[419002558,1774737032939,-500.0,0.00012499,2]
[419002559,1774737032951,-500.0,0.00012499,2]
[419002560,1774737032961,-500.0,0.00012499,2]
[419002561,1774737032971,-500.0,0.00012499,2]
[419002562,1774737032980,-500.0,0.00012499,2]
[419002563,1774737032991,-325.82076513,0.00012499,2]
[419002564,1774737033000,-156.15844264,0.00012499,2]
[419002565,1774737033010,-500.0,0.00012499,2]
[419002566,1774737033019,-500.0,0.00012499,2]
[419002567,1774737033031,-500.0,0.00012499,2]
[419002568,1774737033042,-500.0,0.00012499,2]
[419002569,1774737033052,-500.0,0.00012499,2]
[419002570,1774737033061,-500.0,0.00012499,2]
[419002571,1774737033070,-500.0,0.00012499,2]
[419002572,1774737033080,-178.17181351,0.00012499,2]
[419002573,1774737033089,-500.0,0.00012499,2]
[419002574,1774737033098,-500.0,0.00012499,2]
[419002575,1774737033107,-500.0,0.00012499,2]
[419002576,1774737033117,-500.0,0.00012499,2]
[419002577,1774737033127,-500.0,0.00012499,2]
[419002578,1774737033136,-500.0,0.00012499,2]
[419002579,1774737033145,-206.13980161,0.00012499,2]
[419002580,1774737033155,-150.0,0.00012499,2]
[419002581,1774737033164,-153.79474384,0.00012499,2]
[419002582,1774737033174,-500.0,0.00012499,2]
[419002583,1774737033185,-500.0,0.00012499,2]
[419002584,1774737033198,-389.43547538,0.00012499,2]
[419002585,1774737033209,-500.0,0.00012499,2]
[419002586,1774737033221,-500.0,0.00012499,2]
[419002587,1774737033235,-220.71245266,0.00012499,2]
[419002588,1774737033244,-500.0,0.00012499,2]
[419002589,1774737033254,-500.0,0.00012499,2]
[419002590,1774737033264,-500.0,0.00012499,2]
[419002591,1774737033274,-500.0,0.00012499,2]
[419002592,1774737033285,-500.0,0.00012499,2]
[419002593,1774737033294,-349.64272272,0.00012499,2]
[419002594,1774737033306,-150.0,0.00012499,2]
[419002595,1774737033317,-207.67586054,0.00012499,2]
[419002596,1774737033326,-297.0184146,0.00012518,2]
[419002597,1774737033336,-180352.60765508,0.00012528,2]
[419002598,1774737033658,-25516.55747831,0.00012528,2]
[419002599,1774737033670,-8408.46727034,0.00012528,2]
[419002600,1774737033682,-400.0,0.00012528,2]
[419002601,1774737033694,-584.03326495,0.00012528,2]
[419002608,1774737038248,-1256.40417357,0.00012526,2]
[419002610,1774737038262,-326.06339987,0.00012526,2]
[419002612,1774737038275,-500.0,0.00012526,2]
[419002613,1774737038290,-3317.16300586,0.00012526,2]
[419002614,1774737038301,-1284738.33433132,0.00012528,2]
[419002615,1774737038311,-14423.097604,0.00012556,2]
[419002616,1774737038321,-500.273267,0.00012573,2]
[419002617,1774737038330,-500.0,0.00012573,2]
[419002618,1774737038341,-500.41813262,0.00012573,2]
[419002619,1774737038351,-501.85241925,0.00012573,2]
[419002620,1774737038360,-500.0,0.00012573,2]
[419002621,1774737038370,-500.0,0.00012573,2]
[419002622,1774737038380,-500.0,0.00012573,2]
[419002623,1774737038390,-500.0,0.00012573,2]
[419002624,1774737038400,-44935.7627,0.00012628,2]
[419002625,1774737038410,-2500.0,0.00012628,2]
[419002626,1774737038421,-1190.0,0.00012628,2]
[419002627,1774737038431,-53201.23,0.00012628,2]
[419002628,1774737038441,-17134.21,0.00012628,2]
[419002629,1774737038451,-166.66,0.00012656,2]
[419002630,1774737038461,-501.14876687,0.00012673,2]
[419002631,1774737038471,-500.0,0.00012673,2]
[419002632,1774737038481,-500.0,0.00012673,2]
[419002633,1774737038491,-500.0,0.00012673,2]
[419002634,1774737038501,-500.0,0.00012673,2]
[419002635,1774737038512,-409.73483628,0.00012673,2]
[419002636,1774737038523,-500.15528333,0.00012673,2]
[419002637,1774737038533,-500.0,0.00012673,2]
[419002638,1774737038544,-500.0,0.00012673,2]
[419002639,1774737038553,-500.0,0.00012673,2]
[419002640,1774737038563,-500.0,0.00012673,2]
[419002641,1774737038572,-500.0,0.00012673,2]
[419002642,1774737038582,-500.26796584,0.00012673,2]
[419002643,1774737038592,-500.50577839,0.00012673,2]
[419002644,1774737038601,-169.86308771,0.00012673,2]
[419002645,1774737038611,-2249.49,0.00012699,2]
[419002646,1774737038620,-173.419,0.00012699,2]
[419002647,1774737038629,-701.05,0.00012699,2]
[419002648,1774737038638,-29865.1844,0.000127,2]
[419002649,1774737038648,-1000.0,0.000127,2]
[419002650,1774737038657,-627.07849959,0.00012724,2]
[419002651,1774737038666,-34013.61326387,0.00012728,2]
[419002652,1774737038675,-499.89808899,0.00012728,2]
[419002653,1774737038684,-2344.91861912,0.00012728,2]
[419002654,1774737038694,-235.30570928,0.00012728,2]
[419002655,1774737038703,-9401.0,0.00012767,2]
[419002656,1774737038712,-500.0,0.00012773,2]
[419002657,1774737038722,-588.47473116,0.00012773,2]
[419002658,1774737038731,-500.35186235,0.00012773,2]
[419002659,1774737038740,-500.30534857,0.00012773,2]
[419002660,1774737038750,-500.0,0.00012773,2]
[419002661,1774737038759,-151.0,0.00012797,2]
[419002663,1774737038769,-1852.42,0.00012828,2]
[419002665,1774737038778,-195.0,0.00012841,2]
[419002667,1774737038787,-249.86,0.00012915,2]
[419002668,1774737038797,-14423.09760392,0.00012927,2]
[419002669,1774737038806,-217.36918776,0.00012948,2]
[419002670,1774737038815,-5000.0,0.0001297,2]
[419002671,1774737038824,-701.05,0.00012973,2]
[419002672,1774737038833,-250.0,0.00013,2]
[419002673,1774737038843,-1680.0,0.00013035,2]
[419002674,1774737038853,-500.0,0.00013047,2]
[419002675,1774737038862,-166.66,0.0001306,2]
[419002676,1774737038872,-34013.61326386,0.0001308,2]
[419002677,1774737038881,-1000.0,0.00013121,2]
[419002678,1774737038890,-429.59323127,0.00013121,2]
[419002679,1774737038900,-504.90098881,0.00013121,2]
[419002680,1774737038910,-370.15484201,0.00013121,2]
[419002681,1774737038919,-250.0,0.00013133,2]
[419002682,1774737038929,-500.0,0.00013221,2]
[419002683,1774737038938,-199.77172522,0.00013221,2]
[419002684,1774737038947,-1000.0,0.00013221,2]
[419002685,1774737038957,-500.62783858,0.00013221,2]
[419002686,1774737038966,-1000.0,0.00013221,2]
[419002687,1774737038975,-1000.0,0.00013221,2]
[419002688,1774737038985,-1000.0,0.00013221,2]
[419002689,1774737038995,-1000.0,0.00013221,2]
[419002690,1774737039005,-420.0,0.00013232,2]
[419002691,1774737039015,-701.05,0.00013247,2]
[419002692,1774737039024,-1600.0,0.00013265,2]
[419002693,1774737039034,-14423.09760392,0.00013298,2]
[419002694,1774737039043,-500.0,0.00013321,2]
[419002695,1774737039052,-34013.61326386,0.00013433,2]
[419002696,1774737039062,-217.36918776,0.0001344,2]
[419002697,1774737039072,-166.66,0.00013465,2]
[419002698,1774737039081,-839.2403,0.000135,2]
[419002699,1774737039091,-701.05,0.00013521,2]
[419002700,1774737039100,-255.0,0.00013575,2]
[419002701,1774737039109,-418.68748774,0.00013595,2]
[419002702,1774737039118,-1098.58411617,0.00013668,2]
[419002703,1774737039128,-14423.09760392,0.00013669,2]
[419002704,1774737039139,-500.0,0.00013698,2]
[419002705,1774737039148,-500.0,0.00013698,2]
[419002706,1774737039157,-500.0,0.00013698,2]
[419002707,1774737039166,-500.0,0.00013698,2]
[419002708,1774737039175,-635.09378331,0.00013698,2]
[419002709,1774737039184,-637.02606428,0.00013698,2]
[419002710,1774737039193,-500.0,0.00013698,2]
[419002711,1774737039203,-270.78845739,0.00013698,2]
[419002712,1774737039213,-500.0,0.00013698,2]
[419002713,1774737039222,-500.0,0.00013698,2]
[419002714,1774737039231,-500.0,0.00013698,2]
[419002715,1774737039241,-500.0,0.00013698,2]
[419002716,1774737039251,-500.0,0.00013698,2]
[419002717,1774737039261,-500.0,0.00013698,2]
[419002718,1774737039271,-500.0,0.00013698,2]
[419002719,1774737039280,-500.0,0.00013698,2]
[419002720,1774737039289,-500.0,0.00013698,2]
[419002721,1774737039298,-500.0,0.00013698,2]
[419002722,1774737039307,-500.0,0.00013698,2]
[419002723,1774737039317,-500.0,0.00013698,2]
[419002724,1774737039326,-500.0,0.00013698,2]
[419002725,1774737039335,-500.0,0.00013698,2]
[419002726,1774737039344,-500.0,0.00013698,2]
[419002727,1774737039354,-500.0,0.00013698,2]
[419002728,1774737039365,-500.0,0.00013698,2]
[419002729,1774737039376,-500.0,0.00013698,2]
[419002730,1774737039386,-500.0,0.00013698,2]
[419002731,1774737039396,-500.0,0.00013698,2]
[419002732,1774737039407,-616.12,0.00013698,2]
[419002733,1774737039417,-616.12,0.00013698,2]
[419002734,1774737039427,-616.12,0.00013698,2]
[419002735,1774737039438,-616.12,0.00013698,2]
[419002736,1774737039448,-616.12,0.00013698,2]
[419002737,1774737039458,-616.12,0.00013698,2]
[419002738,1774737039467,-616.12,0.00013698,2]
[419002739,1774737039476,-616.12,0.00013698,2]
[419002740,1774737039485,-616.12,0.00013698,2]
[419002741,1774737039494,-616.12,0.00013698,2]
[419002742,1774737039503,-500.0,0.00013698,2]
[419002743,1774737039512,-500.0,0.00013698,2]
[419002744,1774737039521,-500.0,0.00013698,2]
[419002745,1774737039531,-264.49213527,0.00013698,2]
[419002746,1774737039540,-665.85,0.00013698,2]
[419002747,1774737039549,-665.85,0.00013698,2]
[419002748,1774737039559,-665.85,0.00013698,2]
[419002749,1774737039567,-665.85,0.00013698,2]
[419002750,1774737039576,-665.85,0.00013698,2]
[419002751,1774737039585,-665.85,0.00013698,2]
[419002752,1774737039594,-665.85,0.00013698,2]
[419002753,1774737039603,-665.85,0.00013698,2]
[419002754,1774737039612,-665.85,0.00013698,2]
[419002755,1774737039621,-665.85,0.00013698,2]
[419002756,1774737039630,-665.85,0.00013698,2]
[419002757,1774737039640,-665.85,0.00013698,2]
[419002758,1774737039648,-665.85,0.00013698,2]
[419002759,1774737039658,-665.85,0.00013698,2]
[419002760,1774737039668,-665.85,0.00013698,2]
[419002761,1774737039677,-665.85,0.00013698,2]
[419002762,1774737039686,-665.85,0.00013698,2]
[419002763,1774737039695,-500.0,0.00013698,2]
[419002764,1774737039704,-500.0,0.00013698,2]
[419002765,1774737039713,-500.0,0.00013698,2]
[419002766,1774737039724,-634.8493404,0.00013698,2]
[419002767,1774737039734,-500.0,0.00013698,2]
[419002768,1774737039743,-280.4257349,0.00013698,2]
[419002769,1774737039752,-448.01943974,0.00013698,2]
[419002770,1774737039762,-500.0,0.00013698,2]
[419002771,1774737039771,-500.0,0.00013698,2]
[419002772,1774737039781,-548.0821861,0.00013698,2]
[419002773,1774737039791,-500.0,0.00013698,2]
[419002774,1774737039801,-500.0,0.00013698,2]
[419002775,1774737039811,-500.0,0.00013698,2]
[419002776,1774737039821,-500.0,0.00013698,2]
[419002777,1774737039831,-500.0,0.00013698,2]
[419002778,1774737039840,-500.0,0.00013698,2]
[419002779,1774737039850,-500.0,0.00013698,2]
[419002780,1774737039860,-500.0,0.00013698,2]
[419002781,1774737039870,-500.0,0.00013698,2]
[419002782,1774737039880,-500.0,0.00013698,2]
[419002783,1774737039890,-500.0,0.00013698,2]
[419002784,1774737039900,-500.0,0.00013698,2]
[419002785,1774737039910,-500.0,0.00013698,2]
[419002786,1774737039921,-500.0,0.00013698,2]
[419002787,1774737039931,-500.0,0.00013698,2]
[419002788,1774737039941,-500.0,0.00013698,2]
[419002789,1774737039950,-500.0,0.00013698,2]
[419002790,1774737039960,-500.0,0.00013698,2]
[419002791,1774737039969,-500.0,0.00013698,2]
[419002792,1774737039978,-150.0,0.00013699,2]
[419002794,1774737039987,-150.0,0.00013699,2]
[419002795,1774737039996,-150.0,0.00013699,2]
[419002796,1774737040006,-150.0,0.00013699,2]
[419002797,1774737040015,-150.0,0.00013699,2]
[419002798,1774737040025,-150.0,0.00013699,2]
[419002799,1774737040034,-547.75,0.00013699,2]
[419002800,1774737040043,-370.96,0.00013699,2]
[419002801,1774737040052,-500.0,0.00013699,2]
[419002802,1774737040062,-500.0,0.00013699,2]
[419002803,1774737040071,-500.0,0.00013699,2]
[419002804,1774737040080,-500.0,0.00013699,2]
[419002805,1774737040090,-500.0,0.00013699,2]
[419002806,1774737040099,-500.0,0.00013699,2]
[419002807,1774737040108,-500.0,0.00013699,2]
[419002808,1774737040117,-500.0,0.00013699,2]
[419002809,1774737040127,-500.0,0.00013699,2]
[419002810,1774737040136,-500.0,0.00013699,2]
[419002811,1774737040146,-500.0,0.00013699,2]
[419002812,1774737040155,-500.0,0.00013699,2]
[419002813,1774737040165,-500.0,0.00013699,2]
[419002814,1774737040174,-500.0,0.00013699,2]
[419002815,1774737040184,-548.13868249,0.00013699,2]
[419002816,1774737040193,-500.0,0.00013699,2]
[419002817,1774737040202,-500.0,0.00013699,2]
[419002818,1774737040211,-500.0,0.00013699,2]
[419002819,1774737040221,-500.0,0.00013699,2]
[419002820,1774737040230,-500.0,0.00013699,2]
[419002821,1774737040239,-500.0,0.00013699,2]
[419002822,1774737040248,-500.0,0.00013699,2]
[419002823,1774737040257,-500.0,0.00013699,2]
[419002824,1774737040267,-500.0,0.00013699,2]
[419002825,1774737040276,-500.0,0.00013699,2]
[419002826,1774737040285,-287.00134339,0.00013699,2]
[419002827,1774737040294,-166.35931834,0.00013699,2]
[419002828,1774737040303,-500.0,0.00013699,2]
[419002829,1774737040313,-500.0,0.00013699,2]
[419002830,1774737040322,-500.0,0.00013699,2]
[419002831,1774737040331,-500.0,0.00013699,2]
[419002832,1774737040341,-500.0,0.00013699,2]
[419002833,1774737040350,-500.0,0.00013699,2]
[419002834,1774737040360,-500.42331564,0.00013699,2]
[419002835,1774737040369,-437.29,0.000137,2]
[419002836,1774737040378,-166.6,0.000137,2]
[419002837,1774737040388,-790.62,0.000137,2]
[419002838,1774737040397,-661.64,0.000137,2]
[419002840,1774737040507,-7518.26,0.000137,2]
[419002842,1774737040518,-1204.37,0.000137,2]
[419002843,1774737040528,-150.0,0.00013763,2]
[419002844,1774737040538,-739.50628899,0.00013768,2]
[419002845,1774737040548,-500.0,0.00013768,2]
[419002846,1774737040557,-504.28717166,0.00013768,2]
[419002847,1774737040567,-1500.0,0.00013768,2]
[419002848,1774737040577,-1500.0,0.00013768,2]
[419002849,1774737040586,-34013.61326386,0.00013785,2]
[419002850,1774737040596,-701.05,0.00013795,2]
[419002851,1774737040605,-150.0,0.00013863,2]
[419002852,1774737040615,-166.66,0.00013869,2]
[419002853,1774737040624,-217.36918776,0.00013932,2]
[419002854,1774737040634,-462.920429,0.00013962,2]
[419002855,1774737040644,-150.0,0.00013973,2]
[419002856,1774737040653,-150.0,0.00013973,2]
[419002857,1774737040663,-150.0,0.00013973,2]